[Event "Titled Tuesday Blitz March 28 Early 2023"]
[White "Bashirli, Saadat"]
[Black "Jaivardhan Raj"]
[WhiteFideId "13429990"]
[BlackFideId "25744437"]
[WhiteElo "1408"]
[BlackElo "1772"]
[Result "1-0"]
[Round "08"]
[TimeControl "180+2"]
[Date "2023.03.28"]
[WhiteClock "0:00:56"]
[BlackClock "0:01:43"]

1. e4 {[%clk 0:03:00]}  c5 {[%clk 0:02:56]} 2. Nf3 {[%clk 0:03:00]}  e6 {[%clk 0:02:57]} 3. c4 {[%clk 0:02:59]}  Nc6 {[%clk 0:02:56]} 4. Nc3 {[%clk 0:03:00]}  e5 {[%clk 0:02:56]} 5. Be2 {[%clk 0:02:58]}  d6 {[%clk 0:02:57]} 6. O-O {[%clk 0:02:58]}  Be6 {[%clk 0:02:57]} 7. d3 {[%clk 0:02:57]}  g6 {[%clk 0:02:57]} 8. Be3 {[%clk 0:02:55]}  Bg7 {[%clk 0:02:57]} 9. h3 {[%clk 0:02:52]}  Nge7 {[%clk 0:02:57]} 10. Nh2 {[%clk 0:02:52]}  O-O {[%clk 0:02:58]} 11. f4 {[%clk 0:02:52]}  f5 {[%clk 0:02:59]} 12. fxe5 {[%clk 0:02:47]}  Nxe5 {[%clk 0:02:58]} 13. exf5 {[%clk 0:02:44]}  Nxf5 {[%clk 0:02:58]} 14. Bf2 {[%clk 0:02:40]}  Nc6 {[%clk 0:02:57]} 15. Qc2 {[%clk 0:02:35]}  Ncd4 {[%clk 0:02:57]} 16. Qd2 {[%clk 0:02:31]}  Bh6 {[%clk 0:02:56]} 17. Qd1 {[%clk 0:02:26]}  Be3 {[%clk 0:02:55]} 18. Bg4 {[%clk 0:02:19]}  Bxf2+ {[%clk 0:02:51]} 19. Rxf2 {[%clk 0:02:20]}  h5 {[%clk 0:02:49]} 20. Bxf5 {[%clk 0:02:18]}  Bxf5 {[%clk 0:02:48]} 21. Nf3 {[%clk 0:02:17]}  Nxf3+ {[%clk 0:02:46]} 22. Rxf3 {[%clk 0:02:18]}  Qg5 {[%clk 0:02:45]} 23. Kh2 {[%clk 0:02:04]}  Qh4 {[%clk 0:02:40]} 24. Rf1 {[%clk 0:01:53]}  Qd4 {[%clk 0:02:34]} 25. Rf3 {[%clk 0:01:51]}  Qe5+ {[%clk 0:02:28]} 26. Kh1 {[%clk 0:01:48]}  Qf6 {[%clk 0:02:24]} 27. Qd2 {[%clk 0:01:48]}  Qh4 {[%clk 0:02:21]} 28. Raf1 {[%clk 0:01:45]}  Rfe8 {[%clk 0:02:11]} 29. Nd5 {[%clk 0:01:43]}  Re5 {[%clk 0:02:08]} 30. Kh2 {[%clk 0:01:37]}  Rae8 {[%clk 0:02:07]} 31. Rf4 {[%clk 0:01:19]}  Qg5 {[%clk 0:02:03]} 32. h4 {[%clk 0:01:16]}  Qh6 {[%clk 0:01:59]} 33. Nf6+ {[%clk 0:01:15]}  Kg7 {[%clk 0:01:58]} 34. Nxe8+ {[%clk 0:01:16]}  Rxe8 {[%clk 0:01:58]} 35. Qc3+ {[%clk 0:01:15]}  Re5 {[%clk 0:01:57]} 36. d4 {[%clk 0:01:13]}  cxd4 {[%clk 0:01:53]} 37. Qxd4 {[%clk 0:01:14]}  g5 {[%clk 0:01:52]} 38. Rxf5 {[%clk 0:01:11]}  Qe6 {[%clk 0:01:46]} 39. Rxe5 {[%clk 0:01:09]}  dxe5 {[%clk 0:01:44]} 40. Qe4 {[%clk 0:01:08]}  g4 {[%clk 0:01:44]} 41. Rf5 {[%clk 0:01:06]}  g3+ {[%clk 0:01:44]} 42. Kxg3 {[%clk 0:01:03]}  Kh6 {[%clk 0:01:44]} 43. Qxe5 {[%clk 0:00:59]}  Qg6+ {[%clk 0:01:44]} 44. Rg5 {[%clk 0:00:59]}  Qd3+ {[%clk 0:01:44]} 45. Kh2 {[%clk 0:00:57]}  Qg3+ {[%clk 0:01:43]} 46. Qxg3 {[%clk 0:00:56]} 1-0


[Site "https://www.chess.com"]

[Event "Titled Tuesday Blitz March 28 Early 2023"]
[White "Giri, Anish"]
[Black "Firouzja, Alireza"]
[WhiteFideId "24116068"]
[BlackFideId "12573981"]
[WhiteElo "2807"]
[BlackElo "2904"]
[Result "1-0"]
[Round "09"]
[TimeControl "180+2"]
[Date "2023.03.28"]
[WhiteClock "0:00:05"]
[BlackClock "0:00:02"]

1. d4 {[%clk 0:03:00]}  Nf6 {[%clk 0:02:58]} 2. c4 {[%clk 0:03:00]}  g6 {[%clk 0:02:59]} 3. Nc3 {[%clk 0:03:00]}  Bg7 {[%clk 0:02:59]} 4. e4 {[%clk 0:03:00]}  d6 {[%clk 0:03:00]} 5. Nf3 {[%clk 0:03:01]}  O-O {[%clk 0:03:00]} 6. Be2 {[%clk 0:03:01]}  e5 {[%clk 0:02:57]} 7. O-O {[%clk 0:03:00]}  Nc6 {[%clk 0:02:52]} 8. d5 {[%clk 0:02:58]}  Ne7 {[%clk 0:02:52]} 9. b4 {[%clk 0:02:58]}  a5 {[%clk 0:02:50]} 10. bxa5 {[%clk 0:02:59]}  c5 {[%clk 0:02:51]} 11. a4 {[%clk 0:02:54]}  Rxa5 {[%clk 0:02:49]} 12. Ra3 {[%clk 0:02:46]}  Ra6 {[%clk 0:02:48]} 13. Bd2 {[%clk 0:02:44]}  Kh8 {[%clk 0:02:48]} 14. Qc1 {[%clk 0:02:34]}  Nfg8 {[%clk 0:02:45]} 15. Nb5 {[%clk 0:02:32]}  f5 {[%clk 0:02:04]} 16. exf5 {[%clk 0:02:21]}  gxf5 {[%clk 0:01:55]} 17. Ng5 {[%clk 0:02:20]}  Ng6 {[%clk 0:01:41]} 18. Nxh7 {[%clk 0:02:07]}  f4 {[%clk 0:01:39]} 19. Nxf8 {[%clk 0:02:07]}  Bxf8 {[%clk 0:01:33]} 20. Nc3 {[%clk 0:02:00]}  Bf5 {[%clk 0:01:28]} 21. g4 {[%clk 0:01:54]}  Qg5 {[%clk 0:01:20]} 22. Kh1 {[%clk 0:01:45]}  Nh4 {[%clk 0:01:20]} 23. f3 {[%clk 0:01:33]}  Nf6 {[%clk 0:01:19]} 24. Be1 {[%clk 0:01:29]}  Bg6 {[%clk 0:00:58]} 25. Qd1 {[%clk 0:01:27]}  Rb6 {[%clk 0:00:48]} 26. Bd3 {[%clk 0:01:13]}  Rb2 {[%clk 0:00:40]} 27. Bxg6 {[%clk 0:00:59]}  Nxg6 {[%clk 0:00:40]} 28. Ra2 {[%clk 0:00:54]}  Rxa2 {[%clk 0:00:29]} 29. Nxa2 {[%clk 0:00:55]}  e4 {[%clk 0:00:30]} 30. fxe4 {[%clk 0:00:50]}  Nxg4 {[%clk 0:00:15]} 31. Qf3 {[%clk 0:00:50]}  N4e5 {[%clk 0:00:05]} 32. Qh3+ {[%clk 0:00:48]}  Kg8 {[%clk 0:00:04]} 33. Rg1 {[%clk 0:00:46]}  Qf6 {[%clk 0:00:03]} 34. Bh4 {[%clk 0:00:43]}  Qf7 {[%clk 0:00:03]} 35. Nc3 {[%clk 0:00:36]}  Bg7 {[%clk 0:00:02]} 36. Nd1 {[%clk 0:00:34]}  Nxc4 {[%clk 0:00:02]} 37. Be1 {[%clk 0:00:28]}  Nce5 {[%clk 0:00:02]} 38. Nf2 {[%clk 0:00:27]}  f3 {[%clk 0:00:02]} 39. Bd2 {[%clk 0:00:27]}  Nf4 {[%clk 0:00:02]} 40. Bxf4 {[%clk 0:00:23]}  Qxf4 {[%clk 0:00:03]} 41. Qc8+ {[%clk 0:00:15]}  Kh7 {[%clk 0:00:03]} 42. Qxb7 {[%clk 0:00:15]}  Qf6 {[%clk 0:00:02]} 43. a5 {[%clk 0:00:15]}  c4 {[%clk 0:00:02]} 44. a6 {[%clk 0:00:15]}  Nd3 {[%clk 0:00:02]} 45. Nxd3 {[%clk 0:00:13]}  cxd3 {[%clk 0:00:03]} 46. Qd7 {[%clk 0:00:06]}  f2 {[%clk 0:00:03]} 47. Qh3+ {[%clk 0:00:06]}  Kg8 {[%clk 0:00:02]} 48. Rf1 {[%clk 0:00:06]}  Qd4 {[%clk 0:00:01]} 49. Qf3 {[%clk 0:00:03]}  d2 {[%clk 0:00:01]} 50. Kg2 {[%clk 0:00:04]}  Be5 {[%clk 0:00:02]} 51. h4 {[%clk 0:00:03]}  Kg7 {[%clk 0:00:01]} 52. h5 {[%clk 0:00:04]}  Kh6 {[%clk 0:00:01]} 53. Qg4 {[%clk 0:00:04]}  Kh7 {[%clk 0:00:01]} 54. Qg6+ {[%clk 0:00:04]}  Kh8 {[%clk 0:00:01]} 55. Qe8+ {[%clk 0:00:04]}  Kh7 {[%clk 0:00:02]} 56. Qg6+ {[%clk 0:00:05]}  Kh8 {[%clk 0:00:02]} 57. Qg4 {[%clk 0:00:05]}  Qd3 {[%clk 0:00:02]} 58. h6 {[%clk 0:00:05]}  Kh7 {[%clk 0:00:01]} 59. a7 {[%clk 0:00:05]}  d1=Q {[%clk 0:00:01]} 60. Rxd1 {[%clk 0:00:04]}  Qa3 {[%clk 0:00:02]} 61. Rf1 {[%clk 0:00:03]}  Qxa7 {[%clk 0:00:02]} 62. Rxf2 {[%clk 0:00:04]}  Kxh6 {[%clk 0:00:03]} 63. Rf3 {[%clk 0:00:04]}  Qa2+ {[%clk 0:00:02]} 64. Rf2 {[%clk 0:00:04]}  Qa7 {[%clk 0:00:02]} 65. Qh3+ {[%clk 0:00:04]}  Kg7 {[%clk 0:00:02]} 66. Qf3 {[%clk 0:00:04]}  Qe7 {[%clk 0:00:01]} 67. Kh3 {[%clk 0:00:04]}  Kh8 {[%clk 0:00:01]} 68. Qh5+ {[%clk 0:00:05]}  Kg8 {[%clk 0:00:01]} 69. Rg2+ {[%clk 0:00:05]}  Bg7 {[%clk 0:00:02]} 70. Qg4 {[%clk 0:00:05]}  Kf8 {[%clk 0:00:02]} 71. Qf5+ {[%clk 0:00:05]}  Ke8 {[%clk 0:00:02]} 72. Rg6 {[%clk 0:00:05]}  Kd8 {[%clk 0:00:02]} 73. Qg5 {[%clk 0:00:05]} 1-0


[Site "https://www.chess.com"]

[Event "Titled Tuesday Blitz March 28 Early 2023"]
[White "Sarana, Alexey"]
[Black "Dubov, Daniil"]
[WhiteFideId "24133795"]
[BlackFideId "24126055"]
[WhiteElo "2714"]
[BlackElo "2802"]
[Result "0-1"]
[Round "09"]
[TimeControl "180+2"]
[Date "2023.03.28"]
[WhiteClock "0:00:04"]
[BlackClock "0:00:04"]

1. d4 {[%clk 0:02:57]}  d5 {[%clk 0:02:58]} 2. c4 {[%clk 0:02:57]}  e6 {[%clk 0:02:59]} 3. Nf3 {[%clk 0:02:57]}  Nf6 {[%clk 0:02:59]} 4. Nc3 {[%clk 0:02:57]}  Be7 {[%clk 0:02:58]} 5. Bf4 {[%clk 0:02:57]}  O-O {[%clk 0:02:58]} 6. e3 {[%clk 0:02:57]}  c5 {[%clk 0:02:58]} 7. dxc5 {[%clk 0:02:57]}  Bxc5 {[%clk 0:02:56]} 8. a3 {[%clk 0:02:52]}  Nc6 {[%clk 0:02:54]} 9. cxd5 {[%clk 0:02:48]}  Nxd5 {[%clk 0:02:52]} 10. Nxd5 {[%clk 0:02:49]}  exd5 {[%clk 0:02:53]} 11. Bd3 {[%clk 0:02:47]}  Bd6 {[%clk 0:02:48]} 12. Bxd6 {[%clk 0:02:44]}  Qxd6 {[%clk 0:02:48]} 13. O-O {[%clk 0:02:44]}  Qf6 {[%clk 0:02:35]} 14. Bb5 {[%clk 0:02:13]}  Qxb2 {[%clk 0:02:18]} 15. Qxd5 {[%clk 0:02:11]}  Be6 {[%clk 0:01:28]} 16. Qc5 {[%clk 0:02:11]}  Rac8 {[%clk 0:01:05]} 17. Bxc6 {[%clk 0:01:19]}  Rxc6 {[%clk 0:00:53]} 18. Qxa7 {[%clk 0:01:19]}  Bd5 {[%clk 0:00:49]} 19. Qd4 {[%clk 0:01:14]}  Qxd4 {[%clk 0:00:45]} 20. Nxd4 {[%clk 0:01:15]}  Ra6 {[%clk 0:00:46]} 21. Rfc1 {[%clk 0:01:05]}  Rfa8 {[%clk 0:00:44]} 22. Rc3 {[%clk 0:01:04]}  g6 {[%clk 0:00:41]} 23. f3 {[%clk 0:01:04]}  Ra4 {[%clk 0:00:39]} 24. Kf2 {[%clk 0:01:02]}  Kg7 {[%clk 0:00:38]} 25. h4 {[%clk 0:01:02]}  h5 {[%clk 0:00:38]} 26. Kg3 {[%clk 0:00:56]}  Bc6 {[%clk 0:00:32]} 27. Nxc6 {[%clk 0:00:49]}  bxc6 {[%clk 0:00:33]} 28. e4 {[%clk 0:00:50]}  c5 {[%clk 0:00:21]} 29. Kf4 {[%clk 0:00:46]}  c4 {[%clk 0:00:19]} 30. Ke3 {[%clk 0:00:46]}  R8a7 {[%clk 0:00:19]} 31. Kd4 {[%clk 0:00:36]}  Rd7+ {[%clk 0:00:17]} 32. Ke3 {[%clk 0:00:32]}  Rda7 {[%clk 0:00:17]} 33. Kd2 {[%clk 0:00:32]}  Rd7+ {[%clk 0:00:16]} 34. Kc2 {[%clk 0:00:32]}  Rb7 {[%clk 0:00:16]} 35. Rb1 {[%clk 0:00:27]}  Rba7 {[%clk 0:00:16]} 36. Kb2 {[%clk 0:00:27]}  Rb7+ {[%clk 0:00:13]} 37. Ka2 {[%clk 0:00:27]}  Rd7 {[%clk 0:00:13]} 38. Rb4 {[%clk 0:00:16]}  Rd2+ {[%clk 0:00:13]} 39. Kb1 {[%clk 0:00:16]}  Ra7 {[%clk 0:00:10]} 40. Rb2 {[%clk 0:00:15]}  Rd4 {[%clk 0:00:10]} 41. Rbc2 {[%clk 0:00:14]}  Rd6 {[%clk 0:00:07]} 42. Ka2 {[%clk 0:00:13]}  Rda6 {[%clk 0:00:07]} 43. Rb2 {[%clk 0:00:13]}  Ra4 {[%clk 0:00:07]} 44. Rd2 {[%clk 0:00:12]}  Kf6 {[%clk 0:00:06]} 45. Rd5 {[%clk 0:00:12]}  Rc7 {[%clk 0:00:06]} 46. Kb2 {[%clk 0:00:12]}  Kg7 {[%clk 0:00:06]} 47. Rb5 {[%clk 0:00:06]}  Rd7 {[%clk 0:00:06]} 48. Rb4 {[%clk 0:00:06]}  Rd2+ {[%clk 0:00:06]} 49. Kc1 {[%clk 0:00:05]}  Rxb4 {[%clk 0:00:06]} 50. axb4 {[%clk 0:00:06]}  Rxg2 {[%clk 0:00:06]} 51. b5 {[%clk 0:00:05]}  Ra2 {[%clk 0:00:05]} 52. Rxc4 {[%clk 0:00:04]}  g5 {[%clk 0:00:05]} 53. hxg5 {[%clk 0:00:03]}  h4 {[%clk 0:00:06]} 54. e5 {[%clk 0:00:03]}  h3 {[%clk 0:00:06]} 55. Rh4 {[%clk 0:00:04]}  Ra5 {[%clk 0:00:06]} 56. Rxh3 {[%clk 0:00:03]}  Rxb5 {[%clk 0:00:06]} 57. f4 {[%clk 0:00:04]}  Rb4 {[%clk 0:00:07]} 58. Rf3 {[%clk 0:00:02]}  Kg6 {[%clk 0:00:07]} 59. Kd2 {[%clk 0:00:03]}  Kf5 {[%clk 0:00:07]} 60. Ke3 {[%clk 0:00:03]}  Ra4 {[%clk 0:00:08]} 61. Rf1 {[%clk 0:00:03]}  Rb4 {[%clk 0:00:07]} 62. Kf3 {[%clk 0:00:03]}  Rxf4+ {[%clk 0:00:07]} 63. Kg2 {[%clk 0:00:02]}  Rxf1 {[%clk 0:00:07]} 64. Kxf1 {[%clk 0:00:03]}  Kxe5 {[%clk 0:00:04]} 65. g6 {[%clk 0:00:02]}  fxg6 {[%clk 0:00:04]} 66. Kg1 {[%clk 0:00:01]}  Kf4 {[%clk 0:00:03]} 67. Kg2 {[%clk 0:00:01]}  Kg4 {[%clk 0:00:04]} 68. Kh2 {[%clk 0:00:02]}  Kf3 {[%clk 0:00:04]} 69. Kh3 {[%clk 0:00:02]}  g5 {[%clk 0:00:04]} 70. Kh2 {[%clk 0:00:03]}  g4 {[%clk 0:00:05]} 71. Kg1 {[%clk 0:00:04]}  Kg3 {[%clk 0:00:04]} 0-1


[Site "https://www.chess.com"]

[Event "Titled Tuesday Blitz March 28 Early 2023"]
[White "Le, Tuan Minh"]
[Black "Shimanov, Aleksandr"]
[WhiteFideId "12401153"]
[BlackFideId "4198603"]
[WhiteElo "2558"]
[BlackElo "2631"]
[Result "1-0"]
[Round "09"]
[TimeControl "180+2"]
[Date "2023.03.28"]
[WhiteClock "0:00:09"]
[BlackClock "0:00:02"]

1. d4 {[%clk 0:02:52]}  Nf6 {[%clk 0:02:59]} 2. Nf3 {[%clk 0:02:46]}  g6 {[%clk 0:02:59]} 3. Bg5 {[%clk 0:02:46]}  Bg7 {[%clk 0:02:59]} 4. Nbd2 {[%clk 0:02:47]}  d5 {[%clk 0:02:58]} 5. c3 {[%clk 0:02:47]}  O-O {[%clk 0:02:58]} 6. e3 {[%clk 0:02:47]}  Nbd7 {[%clk 0:02:57]} 7. Bd3 {[%clk 0:02:47]}  Re8 {[%clk 0:02:56]} 8. O-O {[%clk 0:02:48]}  e5 {[%clk 0:02:56]} 9. e4 {[%clk 0:02:48]}  exd4 {[%clk 0:02:38]} 10. cxd4 {[%clk 0:02:49]}  dxe4 {[%clk 0:02:31]} 11. Nxe4 {[%clk 0:02:48]}  h6 {[%clk 0:02:28]} 12. Qb3 {[%clk 0:02:48]}  Nf8 {[%clk 0:01:18]} 13. Nxf6+ {[%clk 0:02:32]}  Bxf6 {[%clk 0:01:19]} 14. Bxh6 {[%clk 0:02:32]}  Be6 {[%clk 0:01:15]} 15. Bc4 {[%clk 0:02:20]}  Bxc4 {[%clk 0:01:06]} 16. Qxc4 {[%clk 0:02:21]}  Ne6 {[%clk 0:01:03]} 17. d5 {[%clk 0:02:16]}  Ng7 {[%clk 0:01:02]} 18. Rfd1 {[%clk 0:02:06]}  Rc8 {[%clk 0:01:00]} 19. Rac1 {[%clk 0:02:00]}  Qd7 {[%clk 0:00:59]} 20. h3 {[%clk 0:01:52]}  Nf5 {[%clk 0:00:53]} 21. Bf4 {[%clk 0:01:50]}  Nd6 {[%clk 0:00:43]} 22. Qb3 {[%clk 0:01:37]}  Re2 {[%clk 0:00:35]} 23. Rc2 {[%clk 0:01:24]}  Rce8 {[%clk 0:00:33]} 24. Be3 {[%clk 0:01:12]}  Rxc2 {[%clk 0:00:28]} 25. Qxc2 {[%clk 0:01:13]}  Nf5 {[%clk 0:00:27]} 26. Bf4 {[%clk 0:01:12]}  Rc8 {[%clk 0:00:22]} 27. b3 {[%clk 0:01:07]}  c5 {[%clk 0:00:21]} 28. d6 {[%clk 0:00:34]}  Nd4 {[%clk 0:00:17]} 29. Nxd4 {[%clk 0:00:35]}  Bxd4 {[%clk 0:00:18]} 30. Re1 {[%clk 0:00:32]}  Re8 {[%clk 0:00:16]} 31. Re2 {[%clk 0:00:18]}  b5 {[%clk 0:00:15]} 32. Qd1 {[%clk 0:00:10]}  Re6 {[%clk 0:00:10]} 33. Qe1 {[%clk 0:00:09]}  Rxe2 {[%clk 0:00:04]} 34. Qxe2 {[%clk 0:00:10]}  Bf6 {[%clk 0:00:05]} 35. Qe4 {[%clk 0:00:08]}  Kg7 {[%clk 0:00:05]} 36. Qd5 {[%clk 0:00:06]}  Bd4 {[%clk 0:00:02]} 37. Be5+ {[%clk 0:00:06]}  f6 {[%clk 0:00:01]} 38. Bxd4 {[%clk 0:00:06]}  cxd4 {[%clk 0:00:02]} 39. Qxd4 {[%clk 0:00:07]}  a5 {[%clk 0:00:02]} 40. Qc5 {[%clk 0:00:08]}  Kf7 {[%clk 0:00:02]} 41. Qd5+ {[%clk 0:00:08]}  Kg7 {[%clk 0:00:02]} 42. h4 {[%clk 0:00:09]}  a4 {[%clk 0:00:02]} 43. bxa4 {[%clk 0:00:09]}  bxa4 {[%clk 0:00:03]} 44. a3 {[%clk 0:00:10]}  Kf8 {[%clk 0:00:03]} 45. g3 {[%clk 0:00:08]}  Kg7 {[%clk 0:00:02]} 46. Qc5 {[%clk 0:00:08]}  Kh6 {[%clk 0:00:02]} 47. Qc1+ {[%clk 0:00:07]}  g5 {[%clk 0:00:02]} 48. hxg5+ {[%clk 0:00:07]}  fxg5 {[%clk 0:00:03]} 49. Qc7 {[%clk 0:00:08]}  Qe6 {[%clk 0:00:03]} 50. d7 {[%clk 0:00:08]}  Qe1+ {[%clk 0:00:03]} 51. Kg2 {[%clk 0:00:09]}  Qe4+ {[%clk 0:00:03]} 52. Kh2 {[%clk 0:00:09]}  Qe2 {[%clk 0:00:02]} 53. Qb6+ {[%clk 0:00:09]}  Kh5 {[%clk 0:00:02]} 54. d8=Q {[%clk 0:00:09]} 1-0


[Site "https://www.chess.com"]

[Event "Titled Tuesday Blitz March 28 Early 2023"]
[White "Demchenko, Anton"]
[Black "Sasikiran, Krishnan"]
[WhiteFideId "4160258"]
[BlackFideId "5004985"]
[WhiteElo "2545"]
[BlackElo "2567"]
[Result "1-0"]
[Round "09"]
[TimeControl "180+2"]
[Date "2023.03.28"]
[WhiteClock "0:00:14"]
[BlackClock "0:00:27"]

1. e4 {[%clk 0:03:00]}  c5 {[%clk 0:02:17]} 2. Nf3 {[%clk 0:03:01]}  d6 {[%clk 0:02:17]} 3. d4 {[%clk 0:03:01]}  cxd4 {[%clk 0:02:18]} 4. Nxd4 {[%clk 0:03:02]}  Nf6 {[%clk 0:02:19]} 5. Nc3 {[%clk 0:03:03]}  a6 {[%clk 0:02:20]} 6. f3 {[%clk 0:03:03]}  e5 {[%clk 0:02:19]} 7. Nb3 {[%clk 0:03:04]}  Be6 {[%clk 0:02:19]} 8. Be3 {[%clk 0:03:05]}  h5 {[%clk 0:02:20]} 9. Qd2 {[%clk 0:03:05]}  Nbd7 {[%clk 0:02:20]} 10. O-O-O {[%clk 0:03:06]}  Be7 {[%clk 0:02:17]} 11. Bg5 {[%clk 0:03:06]}  b5 {[%clk 0:02:14]} 12. a3 {[%clk 0:03:05]}  O-O {[%clk 0:02:12]} 13. h4 {[%clk 0:03:04]}  Rc8 {[%clk 0:02:11]} 14. Kb1 {[%clk 0:03:05]}  Qc7 {[%clk 0:02:09]} 15. g4 {[%clk 0:03:04]}  Rfe8 {[%clk 0:02:06]} 16. gxh5 {[%clk 0:02:53]}  Nxh5 {[%clk 0:02:05]} 17. Bxe7 {[%clk 0:02:44]}  Rxe7 {[%clk 0:02:05]} 18. Qxd6 {[%clk 0:02:45]}  Qxd6 {[%clk 0:01:55]} 19. Rxd6 {[%clk 0:02:46]}  Nb8 {[%clk 0:01:51]} 20. Bh3 {[%clk 0:02:33]}  Bxh3 {[%clk 0:01:48]} 21. Rxh3 {[%clk 0:02:32]}  Nf4 {[%clk 0:01:44]} 22. Rh2 {[%clk 0:02:29]}  Rd7 {[%clk 0:01:41]} 23. Rhd2 {[%clk 0:02:20]}  Rxd6 {[%clk 0:01:41]} 24. Rxd6 {[%clk 0:02:21]}  Kh7 {[%clk 0:01:40]} 25. Nd5 {[%clk 0:01:50]}  Ng2 {[%clk 0:01:40]} 26. h5 {[%clk 0:01:41]}  Ne1 {[%clk 0:01:37]} 27. Nb4 {[%clk 0:01:04]}  Nxf3 {[%clk 0:01:28]} 28. Nxa6 {[%clk 0:01:05]}  Nxa6 {[%clk 0:01:19]} 29. Rxa6 {[%clk 0:01:05]}  g5 {[%clk 0:01:18]} 30. hxg6+ {[%clk 0:01:05]}  fxg6 {[%clk 0:01:18]} 31. Rf6 {[%clk 0:00:59]}  Ne1 {[%clk 0:01:18]} 32. Rf1 {[%clk 0:00:46]}  Ng2 {[%clk 0:01:12]} 33. Nd2 {[%clk 0:00:44]}  Ne3 {[%clk 0:01:02]} 34. Re1 {[%clk 0:00:36]}  Ng2 {[%clk 0:00:53]} 35. Rg1 {[%clk 0:00:35]}  Nf4 {[%clk 0:00:45]} 36. Nf3 {[%clk 0:00:33]}  Re8 {[%clk 0:00:45]} 37. Rg5 {[%clk 0:00:30]}  Kh6 {[%clk 0:00:45]} 38. Rxe5 {[%clk 0:00:30]}  Rf8 {[%clk 0:00:40]} 39. Rxb5 {[%clk 0:00:27]}  Ne6 {[%clk 0:00:38]} 40. Ne5 {[%clk 0:00:24]}  Rf1+ {[%clk 0:00:36]} 41. Ka2 {[%clk 0:00:25]}  Nd4 {[%clk 0:00:36]} 42. Rb6 {[%clk 0:00:24]}  Nxc2 {[%clk 0:00:36]} 43. Rxg6+ {[%clk 0:00:24]}  Kh5 {[%clk 0:00:36]} 44. Rd6 {[%clk 0:00:20]}  Re1 {[%clk 0:00:34]} 45. Rd2 {[%clk 0:00:16]}  Ne3 {[%clk 0:00:31]} 46. Nd3 {[%clk 0:00:16]}  Rf1 {[%clk 0:00:27]} 47. Re2 {[%clk 0:00:13]}  Nc4 {[%clk 0:00:27]} 48. e5 {[%clk 0:00:14]} 1-0


[Site "https://www.chess.com"]

[Event "Titled Tuesday Blitz March 28 Early 2023"]
[White "Ivic, Velimir"]
[Black "Yoo, Christopher Woojin"]
[WhiteFideId "950122"]
[BlackFideId "30909694"]
[WhiteElo "2563"]
[BlackElo "2519"]
[Result "1-0"]
[Round "09"]
[TimeControl "180+2"]
[Date "2023.03.28"]
[WhiteClock "0:00:06"]
[BlackClock "0:00:01"]

1. e4 {[%clk 0:03:00]}  c5 {[%clk 0:02:31]} 2. Nf3 {[%clk 0:03:00]}  e6 {[%clk 0:02:32]} 3. d4 {[%clk 0:03:00]}  cxd4 {[%clk 0:02:33]} 4. Nxd4 {[%clk 0:03:01]}  Nc6 {[%clk 0:02:33]} 5. Nc3 {[%clk 0:03:01]}  Qc7 {[%clk 0:02:33]} 6. Be3 {[%clk 0:03:01]}  a6 {[%clk 0:02:34]} 7. Bd3 {[%clk 0:03:01]}  Nf6 {[%clk 0:02:32]} 8. Qe2 {[%clk 0:03:02]}  b5 {[%clk 0:02:11]} 9. Nxc6 {[%clk 0:02:59]}  dxc6 {[%clk 0:02:02]} 10. a4 {[%clk 0:02:59]}  b4 {[%clk 0:01:57]} 11. Nb1 {[%clk 0:02:58]}  c5 {[%clk 0:01:49]} 12. Nd2 {[%clk 0:02:56]}  Bb7 {[%clk 0:01:48]} 13. f4 {[%clk 0:02:35]}  Be7 {[%clk 0:01:45]} 14. O-O {[%clk 0:02:32]}  h5 {[%clk 0:01:38]} 15. h3 {[%clk 0:02:27]}  h4 {[%clk 0:01:37]} 16. Rfc1 {[%clk 0:02:11]}  Nh5 {[%clk 0:01:34]} 17. Qf2 {[%clk 0:02:11]}  Ng3 {[%clk 0:01:31]} 18. c3 {[%clk 0:01:58]}  Rd8 {[%clk 0:01:29]} 19. Bb1 {[%clk 0:01:57]}  Qd7 {[%clk 0:01:14]} 20. a5 {[%clk 0:01:35]}  O-O {[%clk 0:01:05]} 21. Bc2 {[%clk 0:01:23]}  bxc3 {[%clk 0:00:43]} 22. bxc3 {[%clk 0:01:24]}  f5 {[%clk 0:00:42]} 23. Rd1 {[%clk 0:01:11]}  Qc6 {[%clk 0:00:34]} 24. Rab1 {[%clk 0:01:06]}  fxe4 {[%clk 0:00:32]} 25. Rb6 {[%clk 0:01:06]}  Qc8 {[%clk 0:00:32]} 26. Nc4 {[%clk 0:00:43]}  Rxd1+ {[%clk 0:00:27]} 27. Bxd1 {[%clk 0:00:44]}  Bd5 {[%clk 0:00:27]} 28. Ne5 {[%clk 0:00:43]}  Bd8 {[%clk 0:00:20]} 29. Rb1 {[%clk 0:00:39]}  Bxa5 {[%clk 0:00:18]} 30. c4 {[%clk 0:00:39]}  Ba8 {[%clk 0:00:16]} 31. Ba4 {[%clk 0:00:37]}  Rd8 {[%clk 0:00:12]} 32. Ng6 {[%clk 0:00:25]}  Nf5 {[%clk 0:00:12]} 33. Nxh4 {[%clk 0:00:16]}  Nxe3 {[%clk 0:00:13]} 34. Qxe3 {[%clk 0:00:17]}  Qc7 {[%clk 0:00:11]} 35. Ng6 {[%clk 0:00:16]}  Rd3 {[%clk 0:00:09]} 36. Qe2 {[%clk 0:00:16]}  Rg3 {[%clk 0:00:02]} 37. Qh5 {[%clk 0:00:15]}  Rxg6 {[%clk 0:00:01]} 38. Qxg6 {[%clk 0:00:16]}  Qxf4 {[%clk 0:00:01]} 39. Qe8+ {[%clk 0:00:06]} 1-0


[Site "https://www.chess.com"]

[Event "Titled Tuesday Blitz March 28 Early 2023"]
[White "Makarian, Rudik"]
[Black "Asadli, Vugar"]
[WhiteFideId "44105681"]
[BlackFideId "13405764"]
[WhiteElo "2436"]
[BlackElo "2598"]
[Result "1-0"]
[Round "09"]
[TimeControl "180+2"]
[Date "2023.03.28"]
[WhiteClock "0:00:12"]
[BlackClock "0:01:43"]

1. d4 {[%clk 0:03:00]}  Nf6 {[%clk 0:02:58]} 2. c4 {[%clk 0:03:01]}  g6 {[%clk 0:02:59]} 3. Nc3 {[%clk 0:03:01]}  Bg7 {[%clk 0:02:59]} 4. e4 {[%clk 0:03:02]}  d6 {[%clk 0:03:00]} 5. Be2 {[%clk 0:03:02]}  O-O {[%clk 0:03:00]} 6. Be3 {[%clk 0:03:03]}  Nc6 {[%clk 0:02:59]} 7. Nf3 {[%clk 0:02:58]}  Ng4 {[%clk 0:02:47]} 8. Bg5 {[%clk 0:02:57]}  h6 {[%clk 0:02:46]} 9. Bh4 {[%clk 0:02:58]}  g5 {[%clk 0:02:45]} 10. Bg3 {[%clk 0:02:58]}  e5 {[%clk 0:02:46]} 11. dxe5 {[%clk 0:02:59]}  Ngxe5 {[%clk 0:02:40]} 12. h4 {[%clk 0:02:59]}  Be6 {[%clk 0:02:24]} 13. hxg5 {[%clk 0:02:51]}  Nxf3+ {[%clk 0:02:18]} 14. gxf3 {[%clk 0:02:43]}  Qxg5 {[%clk 0:02:12]} 15. f4 {[%clk 0:02:21]}  Qa5 {[%clk 0:02:12]} 16. f5 {[%clk 0:02:07]}  Bxc3+ {[%clk 0:02:12]} 17. bxc3 {[%clk 0:02:08]}  Qxc3+ {[%clk 0:02:12]} 18. Kf1 {[%clk 0:02:01]}  Bxc4 {[%clk 0:02:12]} 19. Kg2 {[%clk 0:01:49]}  Rfe8 {[%clk 0:02:05]} 20. Bxc4 {[%clk 0:01:20]}  Qxc4 {[%clk 0:02:03]} 21. Qg4+ {[%clk 0:01:19]}  Kf8 {[%clk 0:02:03]} 22. Rae1 {[%clk 0:01:20]}  Ke7 {[%clk 0:01:55]} 23. Rxh6 {[%clk 0:01:18]}  Rg8 {[%clk 0:01:52]} 24. f6+ {[%clk 0:01:03]}  Kf8 {[%clk 0:01:49]} 25. Rh8 {[%clk 0:00:28]}  Rxh8 {[%clk 0:01:45]} 26. Qg7+ {[%clk 0:00:28]}  Ke8 {[%clk 0:01:46]} 27. Qxh8+ {[%clk 0:00:29]}  Kd7 {[%clk 0:01:47]} 28. Qxa8 {[%clk 0:00:29]}  Qc3 {[%clk 0:01:47]} 29. Re3 {[%clk 0:00:25]}  Qxf6 {[%clk 0:01:47]} 30. Qxb7 {[%clk 0:00:25]}  Nd4 {[%clk 0:01:46]} 31. e5 {[%clk 0:00:21]}  Qg5 {[%clk 0:01:42]} 32. exd6 {[%clk 0:00:18]}  Ne6 {[%clk 0:01:43]} 33. dxc7 {[%clk 0:00:16]}  Nf4+ {[%clk 0:01:43]} 34. Kf1 {[%clk 0:00:12]} 1-0


[Site "https://www.chess.com"]